fUSD/lending_fUSD_20260525
["ID","MTS","AMOUNT","RATE_DAILY","PERIOD"]
[422942281,1779661839000,-285.37,0.00015082,2]
[422942284,1779661839000,-1359.41,0.00015789,2]
[422942283,1779661839000,-181.61,0.00015648,2]
[422942277,1779661839000,-9761676.47588847,0.00015,2]
[422942279,1779661839000,-353.46,0.00015,2]
[422942285,1779661839000,-177.93716,0.00015795,2]
[422942288,1779661839000,-266.1,0.00016438,2]
[422942289,1779661839000,-285.37,0.0001659,2]
[422942287,1779661839000,-736.0,0.00016207,2]
[422942286,1779661839000,-285.37,0.00016088,2]
[422942290,1779661839000,-285.37,0.00017093,2]
[422942292,1779661839000,-289.7638191,0.00017398,2]
[422942291,1779661839000,-181.61,0.00017213,2]
[422942295,1779661839000,-500.0,0.00017452,2]
[422942294,1779661839000,-500.0,0.00017452,2]
[422942293,1779661839000,-300.0,0.00017451,2]
[422942297,1779661839000,-500.0,0.00017452,2]
[422942235,1779661839000,-500.0,0.00014999,2]
[422942282,1779661839000,-285.37,0.00015585,2]
[422942276,1779661839000,-666.0,0.00014999,2]
[422942296,1779661839000,-150.0,0.00017452,2]
[422942271,1779661839000,-300.0,0.00014999,2]
[422942273,1779661839000,-666.0,0.00014999,2]
[422942236,1779661839000,-500.0,0.00014999,2]
[422942246,1779661839000,-500.0,0.00014999,2]
[422942247,1779661839000,-241.06693824,0.00014999,2]
[422942251,1779661839000,-1359.47,0.00014999,2]
[422942248,1779661839000,-1359.47,0.00014999,2]
[422942249,1779661839000,-1359.47,0.00014999,2]
[422942242,1779661839000,-500.0,0.00014999,2]
[422942243,1779661839000,-500.0,0.00014999,2]
[422942244,1779661839000,-500.0,0.00014999,2]
[422942245,1779661839000,-500.0,0.00014999,2]
[422942250,1779661839000,-1359.47,0.00014999,2]
[422942239,1779661839000,-500.0,0.00014999,2]
[422942241,1779661839000,-500.0,0.00014999,2]
[422942237,1779661839000,-500.0,0.00014999,2]
[422942254,1779661839000,-1359.47,0.00014999,2]
[422942252,1779661839000,-1359.47,0.00014999,2]
[422942272,1779661839000,-351.41551866,0.00014999,2]
[422942264,1779661839000,-1359.47,0.00014999,2]
[422942261,1779661839000,-1359.47,0.00014999,2]
[422942259,1779661839000,-1359.47,0.00014999,2]
[422942263,1779661839000,-1359.47,0.00014999,2]
[422942260,1779661839000,-1359.47,0.00014999,2]
[422942258,1779661839000,-1359.47,0.00014999,2]
[422942257,1779661839000,-1359.47,0.00014999,2]
[422942253,1779661839000,-1359.47,0.00014999,2]
[422942255,1779661839000,-1359.47,0.00014999,2]
[422942256,1779661839000,-1359.47,0.00014999,2]
[422942262,1779661839000,-1359.47,0.00014999,2]
[422942330,1779661840000,-492.0,0.00017452,2]
[422942343,1779661840000,-500.0,0.00017452,2]
[422942340,1779661840000,-500.0,0.00017452,2]
[422942336,1779661840000,-492.0,0.00017452,2]
[422942332,1779661840000,-492.0,0.00017452,2]
[422942338,1779661840000,-492.0,0.00017452,2]
[422942335,1779661840000,-492.0,0.00017452,2]
[422942339,1779661840000,-504.2358331,0.00017452,2]
[422942334,1779661840000,-492.0,0.00017452,2]
[422942337,1779661840000,-492.0,0.00017452,2]
[422942331,1779661840000,-492.0,0.00017452,2]
[422942333,1779661840000,-492.0,0.00017452,2]
[422942342,1779661840000,-500.0,0.00017452,2]
[422942351,1779661840000,-500.0,0.00017452,2]
[422942344,1779661840000,-500.0,0.00017452,2]
[422942350,1779661840000,-500.0,0.00017452,2]
[422942348,1779661840000,-500.0,0.00017452,2]
[422942347,1779661840000,-150.0,0.00017452,2]
[422942353,1779661840000,-500.0,0.00017452,2]
[422942354,1779661840000,-500.0,0.00017452,2]
[422942346,1779661840000,-500.0,0.00017452,2]
[422942352,1779661840000,-150.0,0.00017452,2]
[422942355,1779661840000,-150.0,0.00017452,2]
[422942345,1779661840000,-500.0,0.00017452,2]
[422942349,1779661840000,-205.82532418,0.00017452,2]
[422942329,1779661840000,-492.0,0.00017452,2]
[422942356,1779661840000,-500.0,0.00017452,2]
[422942341,1779661840000,-500.0,0.00017452,2]
[422942327,1779661840000,-492.0,0.00017452,2]
[422942308,1779661840000,-150.0,0.00017452,2]
[422942326,1779661840000,-492.0,0.00017452,2]
[422942357,1779661840000,-500.0,0.00017452,2]
[422942300,1779661840000,-500.0,0.00017452,2]
[422942301,1779661840000,-460.33258363,0.00017452,2]
[422942302,1779661840000,-500.0,0.00017452,2]
[422942299,1779661840000,-500.0,0.00017452,2]
[422942298,1779661840000,-192.20233017,0.00017452,2]
[422942303,1779661840000,-500.0,0.00017452,2]
[422942305,1779661840000,-500.0,0.00017452,2]
[422942306,1779661840000,-454.03434406,0.00017452,2]
[422942314,1779661840000,-150.0,0.00017452,2]
[422942313,1779661840000,-150.0,0.00017452,2]
[422942312,1779661840000,-255.28499351,0.00017452,2]
[422942311,1779661840000,-150.0,0.00017452,2]
[422942307,1779661840000,-150.0,0.00017452,2]
[422942315,1779661840000,-274.06132765,0.00017452,2]
[422942304,1779661840000,-500.0,0.00017452,2]
[422942310,1779661840000,-150.0,0.00017452,2]
[422942309,1779661840000,-492.0,0.00017452,2]
[422942317,1779661840000,-492.0,0.00017452,2]
[422942323,1779661840000,-492.0,0.00017452,2]
[422942325,1779661840000,-492.0,0.00017452,2]
[422942324,1779661840000,-492.0,0.00017452,2]
[422942321,1779661840000,-492.0,0.00017452,2]
[422942318,1779661840000,-492.0,0.00017452,2]
[422942319,1779661840000,-492.0,0.00017452,2]
[422942316,1779661840000,-492.0,0.00017452,2]
[422942320,1779661840000,-492.0,0.00017452,2]
[422942328,1779661840000,-492.0,0.00017452,2]
[422942359,1779661840000,-500.0,0.00017452,2]
[422942358,1779661840000,-150.0,0.00017452,2]
[422942364,1779661840000,-155.39456345,0.00017452,2]
[422942394,1779661840000,-500.0,0.00017452,2]
[422942402,1779661840000,-500.0,0.00017452,2]
[422942398,1779661840000,-150.0,0.00017452,2]
[422942395,1779661840000,-350.0,0.00017452,2]
[422942404,1779661840000,-500.0,0.00017452,2]
[422942397,1779661840000,-527.91888578,0.00017452,2]
[422942392,1779661840000,-500.0,0.00017452,2]
[422942396,1779661840000,-500.0,0.00017452,2]
[422942401,1779661840000,-500.0,0.00017452,2]
[422942400,1779661840000,-500.0,0.00017452,2]
[422942399,1779661840000,-258.63123921,0.00017452,2]
[422942415,1779661840000,-285.37,0.00018601,2]
[422942416,1779661840000,-500.0,0.00018684,2]
[422942403,1779661840000,-500.0,0.00017452,2]
[422942405,1779661840000,-500.0,0.00017452,2]
[422942411,1779661840000,-501.0,0.00018,2]
[422942413,1779661840000,-266.1,0.0001841,2]
[422942408,1779661840000,-893.24,0.00017596,2]
[422942410,1779661840000,-9999.99,0.00017728,2]
[422942409,1779661840000,-285.37,0.00017596,2]
[422942407,1779661840000,-1359.41,0.00017544,2]
[422942412,1779661840000,-285.37,0.00018099,2]
[422942420,1779661840000,-981.0,0.00018684,2]
[422942418,1779661840000,-500.0,0.00018684,2]
[422942419,1779661840000,-500.0,0.00018684,2]
[422942417,1779661840000,-500.0,0.00018684,2]
[422942361,1779661840000,-150.0,0.00017452,2]
[422942421,1779661840000,-181.61,0.00018778,2]
[422942414,1779661840000,-605.188,0.0001841,2]
[422942393,1779661840000,-500.0,0.00017452,2]
[422942406,1779661840000,-318.29697578,0.00017452,2]
[422942390,1779661840000,-500.0,0.00017452,2]
[422942367,1779661840000,-500.0,0.00017452,2]
[422942391,1779661840000,-150.0,0.00017452,2]
[422942363,1779661840000,-500.0,0.00017452,2]
[422942369,1779661840000,-500.0,0.00017452,2]
[422942362,1779661840000,-220.86822716,0.00017452,2]
[422942366,1779661840000,-500.0,0.00017452,2]
[422942360,1779661840000,-500.0,0.00017452,2]
[422942365,1779661840000,-500.0,0.00017452,2]
[422942368,1779661840000,-500.0,0.00017452,2]
[422942371,1779661840000,-500.0,0.00017452,2]
[422942380,1779661840000,-500.0,0.00017452,2]
[422942376,1779661840000,-500.0,0.00017452,2]
[422942372,1779661840000,-500.0,0.00017452,2]
[422942382,1779661840000,-500.0,0.00017452,2]
[422942370,1779661840000,-500.0,0.00017452,2]
[422942375,1779661840000,-500.0,0.00017452,2]
[422942389,1779661840000,-500.0,0.00017452,2]
[422942381,1779661840000,-500.0,0.00017452,2]
[422942387,1779661840000,-500.0,0.00017452,2]
[422942386,1779661840000,-150.0,0.00017452,2]
[422942383,1779661840000,-194.17870396,0.00017452,2]
[422942385,1779661840000,-167.43265885,0.00017452,2]
[422942384,1779661840000,-552.57794998,0.00017452,2]
[422942388,1779661840000,-150.0,0.00017452,2]
[422942378,1779661840000,-500.0,0.00017452,2]
[422942377,1779661840000,-500.0,0.00017452,2]
[422942373,1779661840000,-500.0,0.00017452,2]
[422942374,1779661840000,-500.0,0.00017452,2]
[422942379,1779661840000,-500.0,0.00017452,2]
[422942461,1779661841000,-500.0,0.00019999,2]
[422942465,1779661841000,-500.0,0.00019999,2]
[422942466,1779661841000,-500.0,0.00019999,2]
[422942468,1779661841000,-500.0,0.00019999,2]
[422942460,1779661841000,-500.0,0.00019999,2]
[422942459,1779661841000,-500.0,0.00019999,2]
[422942464,1779661841000,-500.0,0.00019999,2]
[422942463,1779661841000,-500.0,0.00019999,2]
[422942458,1779661841000,-359.74542368,0.00019999,2]
[422942457,1779661841000,-500.0,0.00019999,2]
[422942456,1779661841000,-500.0,0.00019999,2]
[422942462,1779661841000,-500.0,0.00019999,2]
[422942470,1779661841000,-500.0,0.00019999,2]
[422942472,1779661841000,-500.0,0.00019999,2]
[422942483,1779661841000,-500.0,0.00019999,2]
[422942473,1779661841000,-500.0,0.00019999,2]
[422942474,1779661841000,-500.0,0.00019999,2]
[422942478,1779661841000,-500.0,0.00019999,2]
[422942477,1779661841000,-500.0,0.00019999,2]
[422942479,1779661841000,-500.0,0.00019999,2]
[422942476,1779661841000,-500.0,0.00019999,2]
[422942480,1779661841000,-500.0,0.00019999,2]
[422942485,1779661841000,-500.0,0.00019999,2]
[422942481,1779661841000,-500.0,0.00019999,2]
[422942482,1779661841000,-500.0,0.00019999,2]
[422942484,1779661841000,-500.0,0.00019999,2]
[422942475,1779661841000,-500.0,0.00019999,2]
[422942452,1779661841000,-500.0,0.00019999,2]
[422942471,1779661841000,-500.0,0.00019999,2]
[422942455,1779661841000,-500.0,0.00019999,2]
[422942423,1779661841000,-500.0,0.00018958,2]
[422942450,1779661841000,-500.0,0.00019999,2]
[422942486,1779661841000,-500.0,0.00019999,2]
[422942422,1779661841000,-500.0,0.00018958,2]
[422942424,1779661841000,-500.0,0.00018958,2]
[422942426,1779661841000,-574.45589957,0.00019,2]
[422942428,1779661841000,-285.37,0.00019104,2]
[422942425,1779661841000,-824.0,0.00018958,2]
[422942427,1779661841000,-353.46,0.000191,2]
[422942429,1779661841000,-500.0,0.00019232,2]
[422942430,1779661841000,-500.0,0.00019232,2]
[422942432,1779661841000,-500.0,0.00019232,2]
[422942442,1779661841000,-2000.0,0.00019997,7]
[422942434,1779661841000,-721.0,0.00019232,2]
[422942435,1779661841000,-501.0,0.00019292,3]
[422942444,1779661841000,-500.0,0.00019999,2]
[422942454,1779661841000,-265.49849323,0.00019999,2]
[422942443,1779661841000,-500.0,0.00019999,2]
[422942433,1779661841000,-500.0,0.00019232,2]
[422942436,1779661841000,-1359.41,0.00019298,2]
[422942437,1779661841000,-500.0,0.00019506,2]
[422942439,1779661841000,-500.0,0.00019506,2]
[422942438,1779661841000,-500.0,0.00019506,2]
[422942440,1779661841000,-237.408,0.000199,2]
[422942441,1779661841000,-208.8304494,0.00019907,2]
[422942447,1779661841000,-500.0,0.00019999,2]
[422942445,1779661841000,-500.0,0.00019999,2]
[422942446,1779661841000,-500.0,0.00019999,2]
[422942449,1779661841000,-592.83302094,0.00019999,2]
[422942448,1779661841000,-500.0,0.00019999,2]
[422942451,1779661841000,-500.0,0.00019999,2]
[422942453,1779661841000,-500.0,0.00019999,2]
[422942431,1779661841000,-500.0,0.00019232,2]
[422942487,1779661841000,-500.0,0.00019999,2]
[422942491,1779661841000,-500.0,0.00019999,2]
[422942489,1779661841000,-500.0,0.00019999,2]
[422942522,1779661841000,-220.0,0.00021355,2]
[422942525,1779661841000,-237.38,0.00021571,2]
[422942528,1779661841000,-220.0,0.00021889,2]
[422942529,1779661841000,-500.0,0.000219,2]
[422942527,1779661841000,-501.0,0.00021875,5]
[422942534,1779661841000,-185.0,0.00022,2]
[422942531,1779661841000,-5000.0,0.00021918,2]
[422942535,1779661841000,-208.0,0.00022,2]
[422942538,1779661841000,-220.0,0.00022423,2]
[422942537,1779661841000,-266.1,0.00022353,2]
[422942536,1779661841000,-157.0,0.00022,2]
[422942532,1779661841000,-150.0,0.00021918,2]
[422942533,1779661841000,-482.31,0.00022,10]
[422942530,1779661841000,-1610.21,0.000219,2]
[422942541,1779661841000,-666.0,0.00022475,2]
[422942539,1779661841000,-300.0,0.00022475,2]
[422942540,1779661841000,-300.0,0.00022475,2]
[422942542,1779661841000,-194.64899746,0.00022491,2]
[422942543,1779661841000,-239.94227752,0.00022491,2]
[422942544,1779661841000,-300.0,0.00022561,2]
[422942545,1779661841000,-300.0,0.00022561,2]
[422942548,1779661841000,-964.11,0.00022562,2]
[422942546,1779661841000,-666.0,0.00022561,2]
[422942547,1779661841000,-9999.99,0.00022562,2]
[422942550,1779661841000,-150.99,0.00022562,2]
[422942552,1779661841000,-300.0,0.00022573,2]
[422942551,1779661841000,-999.99,0.00022562,2]
[422942553,1779661841000,-300.0,0.00022573,2]
[422942498,1779661841000,-440.93033267,0.00019999,2]
[422942521,1779661841000,-297.67,0.00021273,2]
[422942524,1779661841000,-1782.0,0.00021467,5]
[422942549,1779661841000,-299.99,0.00022562,7]
[422942520,1779661841000,-166.46,0.00021225,2]
[422942523,1779661841000,-215.34753388,0.00021444,2]
[422942499,1779661841000,-158.65123286,0.00019999,2]
[422942488,1779661841000,-500.0,0.00019999,2]
[422942500,1779661841000,-500.0,0.00019999,2]
[422942496,1779661841000,-500.0,0.00019999,2]
[422942494,1779661841000,-302.91659627,0.00019999,2]
[422942495,1779661841000,-500.0,0.00019999,2]
[422942493,1779661841000,-500.0,0.00019999,2]
[422942497,1779661841000,-500.0,0.00019999,2]
[422942492,1779661841000,-500.0,0.00019999,2]
[422942502,1779661841000,-500.0,0.00019999,2]
[422942507,1779661841000,-157.0,0.0002,2]
[422942501,1779661841000,-500.0,0.00019999,2]
[422942512,1779661841000,-299.99999902,0.0002,2]
[422942511,1779661841000,-367.67436187,0.0002,2]
[422942490,1779661841000,-500.0,0.00019999,2]
[422942513,1779661841000,-280.55361116,0.0002,2]
[422942508,1779661841000,-185.0,0.0002,2]
[422942516,1779661841000,-185.0,0.00021,2]
[422942518,1779661841000,-157.0,0.00021,2]
[422942526,1779661841000,-353.46,0.000218,2]
[422942515,1779661841000,-501.0,0.00020583,4]
[422942514,1779661841000,-266.1,0.00020381,2]
[422942519,1779661841000,-1359.41,0.00021053,2]
[422942504,1779661841000,-500.0,0.00019999,2]
[422942509,1779661841000,-159.0,0.0002,2]
[422942505,1779661841000,-500.0,0.00019999,2]
[422942510,1779661841000,-157.0,0.0002,2]
[422942517,1779661841000,-169.0,0.00021,2]
[422942506,1779661841000,-500.0,0.00019999,2]
[422942503,1779661841000,-207.84742369,0.00019999,2]
[422942590,1779661842000,-500.0,0.00022674,2]
[422942584,1779661842000,-542.23499676,0.00022674,2]
[422942585,1779661842000,-500.0,0.00022674,2]
[422942588,1779661842000,-500.0,0.00022674,2]
[422942587,1779661842000,-297.11,0.00022674,2]
[422942586,1779661842000,-500.0,0.00022674,2]
[422942583,1779661842000,-500.0,0.00022674,2]
[422942591,1779661842000,-500.0,0.00022674,2]
[422942594,1779661842000,-500.0,0.00022674,2]
[422942593,1779661842000,-500.0,0.00022674,2]
[422942592,1779661842000,-500.0,0.00022674,2]
[422942595,1779661842000,-500.0,0.00022674,2]
[422942607,1779661842000,-500.0,0.00022674,2]
[422942597,1779661842000,-500.0,0.00022674,2]
[422942605,1779661842000,-500.0,0.00022674,2]
[422942606,1779661842000,-500.0,0.00022674,2]
[422942596,1779661842000,-500.0,0.00022674,2]
[422942598,1779661842000,-500.0,0.00022674,2]
[422942599,1779661842000,-500.0,0.00022674,2]
[422942600,1779661842000,-500.0,0.00022674,2]
[422942601,1779661842000,-500.0,0.00022674,2]
[422942603,1779661842000,-513.50677347,0.00022674,2]
[422942581,1779661842000,-500.0,0.00022674,2]
[422942604,1779661842000,-500.0,0.00022674,2]
[422942589,1779661842000,-500.0,0.00022674,2]
[422942582,1779661842000,-527.2240957,0.00022674,2]
[422942574,1779661842000,-500.0,0.00022674,2]
[422942579,1779661842000,-500.0,0.00022674,2]
[422942602,1779661842000,-500.0,0.00022674,2]
[422942562,1779661842000,-2000.0,0.00022575,2]
[422942564,1779661842000,-5992.9205,0.00022575,2]
[422942563,1779661842000,-3451.8552,0.00022575,2]
[422942555,1779661842000,-500.0,0.00022573,2]
[422942554,1779661842000,-666.0,0.00022573,2]
[422942556,1779661842000,-500.0,0.00022573,2]
[422942557,1779661842000,-500.0,0.00022573,2]
[422942559,1779661842000,-500.0,0.00022573,2]
[422942561,1779661842000,-325664.0073,0.00022574,2]
[422942560,1779661842000,-1805.82,0.00022573,2]
[422942558,1779661842000,-500.0,0.00022573,2]
[422942568,1779661842000,-500.0,0.00022674,2]
[422942570,1779661842000,-500.0,0.00022674,2]
[422942569,1779661842000,-500.0,0.00022674,2]
[422942565,1779661842000,-151.0,0.00022672,7]
[422942575,1779661842000,-500.0,0.00022674,2]
[422942567,1779661842000,-500.0,0.00022674,2]
[422942566,1779661842000,-500.0,0.00022674,2]
[422942573,1779661842000,-500.0,0.00022674,2]
[422942576,1779661842000,-500.0,0.00022674,2]
[422942571,1779661842000,-500.0,0.00022674,2]
[422942572,1779661842000,-500.0,0.00022674,2]
[422942578,1779661842000,-500.0,0.00022674,2]
[422942577,1779661842000,-230.63278999,0.00022674,2]
[422942580,1779661842000,-500.0,0.00022674,2]
[422942608,1779661842000,-500.0,0.00022674,2]
[422942614,1779661842000,-500.0,0.00022674,2]
[422942609,1779661842000,-406.86,0.00022674,2]
[422942636,1779661842000,-1805.82,0.00022674,2]
[422942640,1779661842000,-300.0,0.00022674,2]
[422942643,1779661842000,-846.81909,0.00022675,2]
[422942644,1779661842000,-151.0,0.00022675,2]
[422942639,1779661842000,-300.0,0.00022674,2]
[422942647,1779661842000,-846.81909,0.00022675,2]
[422942649,1779661842000,-369.57238,0.00022675,2]
[422942650,1779661842000,-369.57238,0.00022675,2]
[422942651,1779661842000,-369.57238,0.00022675,2]
[422942648,1779661842000,-151.0,0.00022675,2]
[422942655,1779661842000,-151.0,0.00022675,2]
[422942652,1779661842000,-369.57238,0.00022675,2]
[422942654,1779661842000,-151.0,0.00022675,2]
[422942653,1779661842000,-151.0,0.00022675,2]
[422942656,1779661842000,-151.0,0.00022675,2]
[422942658,1779661842000,-151.0,0.00022675,2]
[422942659,1779661842000,-151.0,0.00022675,2]
[422942657,1779661842000,-151.0,0.00022675,2]
[422942661,1779661842000,-151.0,0.00022675,2]
[422942663,1779661842000,-129157.62419475,0.00022675,2]
[422942660,1779661842000,-151.0,0.00022675,2]
[422942662,1779661842000,-63824.15700332,0.00022675,2]
[422942664,1779661842000,-1805.82,0.00022674,2]
[422942665,1779661842000,-5269.33229004,0.00022675,2]
[422942611,1779661842000,-500.0,0.00022674,2]
[422942638,1779661842000,-1805.82,0.00022674,2]
[422942641,1779661842000,-1538.0,0.00022675,5]
[422942637,1779661842000,-1805.82,0.00022674,2]
[422942642,1779661842000,-846.81909,0.00022675,2]
[422942613,1779661842000,-500.0,0.00022674,2]
[422942612,1779661842000,-500.0,0.00022674,2]
[422942610,1779661842000,-500.0,0.00022674,2]
[422942615,1779661842000,-500.0,0.00022674,2]
[422942619,1779661842000,-500.0,0.00022674,2]
[422942616,1779661842000,-500.0,0.00022674,2]
[422942617,1779661842000,-500.0,0.00022674,2]
[422942620,1779661842000,-500.0,0.00022674,2]
[422942618,1779661842000,-500.0,0.00022674,2]
[422942621,1779661842000,-500.0,0.00022674,2]
[422942625,1779661842000,-500.0,0.00022674,2]
[422942624,1779661842000,-500.0,0.00022674,2]
[422942623,1779661842000,-500.0,0.00022674,2]
[422942622,1779661842000,-500.0,0.00022674,2]
[422942626,1779661842000,-500.0,0.00022674,2]
[422942631,1779661842000,-500.0,0.00022674,2]
[422942630,1779661842000,-500.0,0.00022674,2]
[422942628,1779661842000,-500.0,0.00022674,2]
[422942629,1779661842000,-500.0,0.00022674,2]
[422942633,1779661842000,-500.0,0.00022674,2]
[422942632,1779661842000,-500.0,0.00022674,2]
[422942635,1779661842000,-1805.82,0.00022674,2]
[422942646,1779661842000,-151.0,0.00022675,2]
[422942634,1779661842000,-1805.82,0.00022674,2]
[422942645,1779661842000,-846.81909,0.00022675,2]
[422942627,1779661842000,-500.0,0.00022674,2]
[422942670,1779661843000,-151.0,0.00022675,2]
[422942672,1779661843000,-385.820671,0.00022675,2]
[422942681,1779661843000,-882.55272606,0.00014982,2]
[422942671,1779661843000,-4202.5984944,0.00022675,2]
[422942673,1779661843000,-523.88975252,0.00022675,2]
[422942669,1779661843000,-1805.82,0.00022674,2]
[422942683,1779661844000,-58710.40244086,0.00022675,2]
[422942682,1779661844000,-2369.17110269,0.00014982,2]
[422942687,1779661847000,-4528.89031255,0.000149,2]
[422942727,1779662951000,155.13,6.521e-05,2]
[422942726,1779662951000,155.13,6.238e-05,2]
[422942725,1779662951000,155.13,5.954e-05,2]
[422942724,1779662951000,155.13,5.671e-05,2]
[422942723,1779662951000,155.13,5.387e-05,2]
[422942738,1779662952000,155.13,6.805e-05,2]
[422942743,1779662952000,155.13,7.372e-05,2]
[422942744,1779662952000,155.13,7.656e-05,2]
[422942741,1779662952000,155.13,7.088e-05,2]
[422942746,1779662953000,155.13,8.223e-05,2]
[422942745,1779662953000,155.13,7.939e-05,2]
[422942786,1779663031000,-1923.08,0.00010402,2]
[422942785,1779663031000,-14839.16,0.00010379,2]
[422942792,1779663031000,-500.0,0.00010806,2]
[422942782,1779663031000,-155.13,0.00010207,2]
[422942791,1779663031000,-155.13,0.00010774,2]
[422942784,1779663031000,-167.05,0.0001037,2]
[422942801,1779663031000,-5183.0,0.00010966,2]
[422942790,1779663031000,-151.89559445,0.0001067,2]
[422942788,1779663031000,-155.13,0.00010491,2]
[422942789,1779663031000,-363.58,0.0001062,2]
[422942787,1779663031000,-400.0,0.00010438,2]
[422942793,1779663031000,-352.24,0.00010893,2]
[422942794,1779663031000,-1200.0,0.00010928,2]
[422942780,1779663031000,-4785.0,0.00010144,2]
[422942783,1779663031000,-221.27,0.00010228,2]
[422942781,1779663031000,-160.0,0.00010168,2]
[422942769,1779663031000,-155.13,9.357e-05,2]
[422942776,1779663031000,-151.89559445,9.924e-05,2]
[422942797,1779663031000,-300.0,0.00010943,2]
[422942762,1779663031000,-155.13,8.506e-05,2]
[422942763,1779663031000,-500.0,8.577e-05,2]
[422942767,1779663031000,-155.13,9.073e-05,2]
[422942766,1779663031000,-237.0,8.877e-05,2]
[422942764,1779663031000,-250.0,8.648e-05,2]
[422942768,1779663031000,-363.58,9.172e-05,2]
[422942770,1779663031000,-250.0,9.357e-05,2]
[422942774,1779663031000,-363.58,9.654e-05,2]
[422942772,1779663031000,-500.0,9.357e-05,2]
[422942777,1779663031000,-416.596733,0.0001,2]
[422942773,1779663031000,-155.13,9.64e-05,2]
[422942771,1779663031000,-300.0,9.357e-05,2]
[422942778,1779663031000,-250.0,0.00010089,2]
[422942775,1779663031000,-155.13,9.924e-05,2]
[422942779,1779663031000,-363.58,0.00010137,2]
[422942804,1779663031000,-1852.42,0.00011,2]
[422942765,1779663031000,-155.13,8.79e-05,2]
[422942799,1779663031000,-9416.0,0.00010944,2]
[422942846,1779663031000,-156.18761851,0.00012451,2]
[422942856,1779663031000,-2383.809,0.00012522,2]
[422942848,1779663031000,-2143.47653292,0.00012451,2]
[422942860,1779663031000,-500.0,0.00012522,2]
[422942854,1779663031000,-167.06305135,0.00012493,2]
[422942858,1779663031000,-173.244,0.00012522,2]
[422942862,1779663031000,-500.0,0.00012522,2]
[422942852,1779663031000,-241.73459319,0.00012461,2]
[422942850,1779663031000,-5452.51339434,0.00012451,2]
[422942863,1779663031000,-500.0,0.00012522,2]
[422942867,1779663031000,-500.0,0.00012522,2]
[422942869,1779663031000,-207.84742369,0.00012522,2]
[422942873,1779663031000,-500.0,0.00012522,2]
[422942866,1779663031000,-500.0,0.00012522,2]
[422942871,1779663031000,-500.0,0.00012522,2]
[422942841,1779663031000,-150.0,0.0001245,2]
[422942844,1779663031000,-156.36587367,0.00012451,2]
[422942796,1779663031000,-2451.37,0.00010929,2]
[422942828,1779663031000,-334.01,0.00012007,2]
[422942840,1779663031000,-1112.39,0.0001232,2]
[422942806,1779663031000,-363.58,0.00011102,2]
[422942814,1779663031000,-6827.0,0.00011359,2]
[422942809,1779663031000,-429.12,0.00011243,2]
[422942811,1779663031000,-2302.0,0.00011337,2]
[422942807,1779663031000,-15562.62,0.00011187,2]
[422942817,1779663031000,-151.89559445,0.00011515,2]
[422942820,1779663031000,-363.58,0.00011585,2]